{"text_format":"3","workbook":"xlsx","n_sheets":1,"sheets":["ІНВЕНТАРНИЙ СПИСОК ОБЛАДНАННЯ"],"not_rendered":{"defined_names":5},"read":"whole","date_system":"1900"}

{"sheet":"ІНВЕНТАРНИЙ СПИСОК ОБЛАДНАННЯ","index":0,"n_rows":9,"n_cols":19,"rows_kept":9,"merged":[[0,1,0,5],[0,6,0,9],[0,10,0,12],[0,13,0,14],[2,1,2,6],[2,7,2,18]]}
[null,"ІНВЕНТАРНИЙ СПИСОК ОБЛАДНАННЯ"]
[]
[null,"ФІЗИЧНИЙ СТАН",{"$nulls":5},"ФІНАНСОВИЙ СТАН"]
[null,"Інвентарний або серійний номер","Опис продукту (виробник і модель)","Розташування","Стан","Постачальник","Залишилося років служби ","Початкова вартість","Авансовий платіж","Дата придбання або отримання","Термін позики в роках","Ставка позики","Щомісячний платіж","Щомісячні операційні витрати","Усього витрат щомісяця","Очікувана вартість наприкінці терміну позики","Щорічна рівномірна амортизація","Щомісячна рівномірна амортизація","Поточна вартість"]
[null,123,"Модель марки","Головне відділення","Добрий","місцевий",5,{"v":240000,"d":"240,000.00₴"},{"v":40000,"d":"40,000.00₴"},{"$f":"DATE(YEAR(TODAY())-2, 1,1)","v":"2016-01-01"},4,{"v":0.1,"d":"10.00%"},{"$f":"IFERROR(IF(AND(Дані[[#This Row],[Початкова вартість]]>0,Дані[[#This Row],[Початкова вартість]]<>Дані[[#This Row],[Авансовий платіж]]),-1*PMT(Дані[[#This Row],[Ставка позики]]/12,Дані[[#This Row],[Термін позики в роках]]*12,Дані[[#This Row],[Початкова вартість]]-Дані[[#This Row],[Авансовий платіж]]),0),0)","v":{"v":5072.516686949438,"d":"5,072.52₴"}},{"v":1600,"d":"1,600.00₴"},{"$f":"IFERROR(Дані[[#This Row],[Щомісячні операційні витрати]]+Дані[[#This Row],[Щомісячний платіж]],\"\")","v":{"v":6672.516686949438,"d":"6,672.52₴"}},{"v":160000,"d":"160,000.00₴"},{"$f":"IFERROR(IF(Дані[[#This Row],[Початкова вартість]]>0,SLN(Дані[[#This Row],[Початкова вартість]],Дані[[#This Row],[Очікувана вартість наприкінці терміну позики]],Дані[[#This Row],[Залишилося років служби ]]),0),0)","v":{"v":16000,"d":"16,000.00₴"}},{"$f":"IFERROR(Дані[[#This Row],[Щорічна рівномірна амортизація]]/12,0)","v":{"v":1333.3333333333333,"d":"1,333.33₴"}},{"$f":"IFERROR(Дані[[#This Row],[Початкова вартість]]-(Дані[[#This Row],[Щорічна рівномірна амортизація]]*((TODAY()-Дані[[#This Row],[Дата придбання або отримання]])/365)),0)","v":{"v":200109.5890410959,"d":"200,109.59₴"}}]
[null,456,"Модель марки","Головне відділення","Чудовий","місцевий",3,{"v":40000,"d":"40,000.00₴"},{"v":40000,"d":"40,000.00₴"},{"$f":"DATE(YEAR(TODAY())-1, 1,1)","v":"2017-01-01"},null,null,{"$f":"IFERROR(IF(AND(Дані[[#This Row],[Початкова вартість]]>0,Дані[[#This Row],[Початкова вартість]]<>Дані[[#This Row],[Авансовий платіж]]),-1*PMT(Дані[[#This Row],[Ставка позики]]/12,Дані[[#This Row],[Термін позики в роках]]*12,Дані[[#This Row],[Початкова вартість]]-Дані[[#This Row],[Авансовий платіж]]),0),0)","v":{"v":0,"d":"0.00₴"}},{"v":160,"d":"160.00₴"},{"$f":"IFERROR(Дані[[#This Row],[Щомісячні операційні витрати]]+Дані[[#This Row],[Щомісячний платіж]],\"\")","v":{"v":160,"d":"160.00₴"}},null,{"$f":"IFERROR(IF(Дані[[#This Row],[Початкова вартість]]>0,SLN(Дані[[#This Row],[Початкова вартість]],Дані[[#This Row],[Очікувана вартість наприкінці терміну позики]],Дані[[#This Row],[Залишилося років служби ]]),0),0)","v":{"v":13333.333333333334,"d":"13,333.33₴"}},{"$f":"IFERROR(Дані[[#This Row],[Щорічна рівномірна амортизація]]/12,0)","v":{"v":1111.111111111111,"d":"1,111.11₴"}},{"$f":"IFERROR(Дані[[#This Row],[Початкова вартість]]-(Дані[[#This Row],[Щорічна рівномірна амортизація]]*((TODAY()-Дані[[#This Row],[Дата придбання або отримання]])/365)),0)","v":{"v":20127.853881278537,"d":"20,127.85₴"}}]
[null,789,"Модель марки","Східне відділення","Задовільний","місцевий",6,{"v":400000,"d":"400,000.00₴"},{"v":160000,"d":"160,000.00₴"},{"$f":"TODAY()","v":"2018-06-29"},5,{"v":0.05,"d":"5.00%"},{"$f":"IFERROR(IF(AND(Дані[[#This Row],[Початкова вартість]]>0,Дані[[#This Row],[Початкова вартість]]<>Дані[[#This Row],[Авансовий платіж]]),-1*PMT(Дані[[#This Row],[Ставка позики]]/12,Дані[[#This Row],[Термін позики в роках]]*12,Дані[[#This Row],[Початкова вартість]]-Дані[[#This Row],[Авансовий платіж]]),0),0)","v":{"v":4529.096074562624,"d":"4,529.10₴"}},{"v":320,"d":"320.00₴"},{"$f":"IFERROR(Дані[[#This Row],[Щомісячні операційні витрати]]+Дані[[#This Row],[Щомісячний платіж]],\"\")","v":{"v":4849.096074562624,"d":"4,849.10₴"}},{"v":12000,"d":"12,000.00₴"},{"$f":"IFERROR(IF(Дані[[#This Row],[Початкова вартість]]>0,SLN(Дані[[#This Row],[Початкова вартість]],Дані[[#This Row],[Очікувана вартість наприкінці терміну позики]],Дані[[#This Row],[Залишилося років служби ]]),0),0)","v":{"v":64666.666666666664,"d":"64,666.67₴"}},{"$f":"IFERROR(Дані[[#This Row],[Щорічна рівномірна амортизація]]/12,0)","v":{"v":5388.888888888889,"d":"5,388.89₴"}},{"$f":"IFERROR(Дані[[#This Row],[Початкова вартість]]-(Дані[[#This Row],[Щорічна рівномірна амортизація]]*((TODAY()-Дані[[#This Row],[Дата придбання або отримання]])/365)),0)","v":{"v":400000,"d":"400,000.00₴"}}]
[{"$nulls":12},{"$f":"IFERROR(IF(AND(Дані[[#This Row],[Початкова вартість]]>0,Дані[[#This Row],[Початкова вартість]]<>Дані[[#This Row],[Авансовий платіж]]),-1*PMT(Дані[[#This Row],[Ставка позики]]/12,Дані[[#This Row],[Термін позики в роках]]*12,Дані[[#This Row],[Початкова вартість]]-Дані[[#This Row],[Авансовий платіж]]),0),0)","v":{"v":0,"d":"0.00₴"}},null,{"$f":"IFERROR(Дані[[#This Row],[Щомісячні операційні витрати]]+Дані[[#This Row],[Щомісячний платіж]],\"\")","v":{"v":0,"d":"0.00₴"}},null,{"$f":"IFERROR(IF(Дані[[#This Row],[Початкова вартість]]>0,SLN(Дані[[#This Row],[Початкова вартість]],Дані[[#This Row],[Очікувана вартість наприкінці терміну позики]],Дані[[#This Row],[Залишилося років служби ]]),0),0)","v":{"v":0,"d":"0.00₴"}},{"$f":"IFERROR(Дані[[#This Row],[Щорічна рівномірна амортизація]]/12,0)","v":{"v":0,"d":"0.00₴"}},{"$f":"IFERROR(Дані[[#This Row],[Початкова вартість]]-(Дані[[#This Row],[Щорічна рівномірна амортизація]]*((TODAY()-Дані[[#This Row],[Дата придбання або отримання]])/365)),0)","v":{"v":0,"d":"0.00₴"}}]
[{"$nulls":12},{"$f":"IFERROR(IF(AND(Дані[[#This Row],[Початкова вартість]]>0,Дані[[#This Row],[Початкова вартість]]<>Дані[[#This Row],[Авансовий платіж]]),-1*PMT(Дані[[#This Row],[Ставка позики]]/12,Дані[[#This Row],[Термін позики в роках]]*12,Дані[[#This Row],[Початкова вартість]]-Дані[[#This Row],[Авансовий платіж]]),0),0)","v":{"v":0,"d":"0.00₴"}},null,{"$f":"IFERROR(Дані[[#This Row],[Щомісячні операційні витрати]]+Дані[[#This Row],[Щомісячний платіж]],\"\")","v":{"v":0,"d":"0.00₴"}},null,{"$f":"IFERROR(IF(Дані[[#This Row],[Початкова вартість]]>0,SLN(Дані[[#This Row],[Початкова вартість]],Дані[[#This Row],[Очікувана вартість наприкінці терміну позики]],Дані[[#This Row],[Залишилося років служби ]]),0),0)","v":{"v":0,"d":"0.00₴"}},{"$f":"IFERROR(Дані[[#This Row],[Щорічна рівномірна амортизація]]/12,0)","v":{"v":0,"d":"0.00₴"}},{"$f":"IFERROR(Дані[[#This Row],[Початкова вартість]]-(Дані[[#This Row],[Щорічна рівномірна амортизація]]*((TODAY()-Дані[[#This Row],[Дата придбання або отримання]])/365)),0)","v":{"v":0,"d":"0.00₴"}}]